[Event "Early-Titled-Tuesday-Blitz-September-12-2023"]
[Site "Chess.com"]
[Date "2023.09.12"]
[Round "6"]
[White "Good_Knight_Kiss"]
[Black "RebecaJimnz"]
[Result "1-0"]
[WhiteElo "2399"]
[BlackElo "2195"]
[TimeControl "180+1"]
[EndTime "9:04:34 PDT"]
[Termination "Good_Knight_Kiss won by resignation"]

1. e4 {[%clk 0:03:00.9]} 1... g6 {[%clk 0:02:57.6]} 2. d4 {[%clk 0:02:56.1]}
2... Bg7 {[%clk 0:02:58.3]} 3. Nc3 {[%clk 0:02:55.6]} 3... d6 {[%clk 0:02:59]}
4. f4 {[%clk 0:02:55.8]} 4... a6 {[%clk 0:02:59.6]} 5. Nf3 {[%clk 0:02:56]} 5...
b5 {[%clk 0:03:00]} 6. Bd3 {[%clk 0:02:56.3]} 6... Bb7 {[%clk 0:03:00.7]} 7. a4
{[%clk 0:02:56.4]} 7... Nf6 {[%clk 0:03:01.4]} 8. e5 {[%clk 0:02:41]} 8... dxe5
{[%clk 0:02:58.2]} 9. fxe5 {[%clk 0:02:37.2]} 9... Nd5 {[%clk 0:02:42.6]} 10.
axb5 {[%clk 0:02:34.7]} 10... Nb4 {[%clk 0:02:18.2]} 11. bxa6 {[%clk 0:02:26.1]}
11... Nxd3+ {[%clk 0:02:16.8]} 12. Qxd3 {[%clk 0:02:25.4]} 12... Bxa6 {[%clk
0:02:16.1]} 13. Qe4 {[%clk 0:02:21.3]} 13... Nd7 {[%clk 0:02:11]} 14. e6 {[%clk
0:02:15.5]} 14... Nf6 {[%clk 0:02:01.9]} 15. exf7+ {[%clk 0:02:12.6]} 15... Kxf7
{[%clk 0:02:02.8]} 16. Ng5+ {[%clk 0:02:08.7]} 16... Ke8 {[%clk 0:01:51.3]} 17.
Qc6+ {[%clk 0:01:55.1]} 17... Nd7 {[%clk 0:01:38.1]} 18. Rxa6 {[%clk 0:01:21.1]}
18... Rxa6 {[%clk 0:01:37.9]} 19. Qxa6 {[%clk 0:01:22]} 19... e5 {[%clk
0:01:21.5]} 20. Ne6 {[%clk 0:01:09.5]} 20... Qh4+ {[%clk 0:01:18.3]} 21. g3
{[%clk 0:01:08.7]} 21... Qe7 {[%clk 0:01:08.4]} 22. Nxg7+ {[%clk 0:00:44.4]}
22... Qxg7 {[%clk 0:01:09.3]} 23. Qe6+ {[%clk 0:00:44.1]} 23... Kd8 {[%clk
0:01:05.8]} 24. Bg5+ {[%clk 0:00:35.2]} 24... Kc8 {[%clk 0:01:05.5]} 25. O-O
{[%clk 0:00:32.5]} 25... exd4 {[%clk 0:00:56.7]} 26. Rf7 {[%clk 0:00:31.3]} 1-0

[Event "Early-Titled-Tuesday-Blitz-September-12-2023"]
[Site "Chess.com"]
[Date "2023.09.12"]
[Round "6"]
[White "Rud_Makarian"]
[Black "FabianoCaruana"]
[Result "0-1"]
[WhiteElo "2963"]
[BlackElo "3072"]
[TimeControl "180+1"]
[EndTime "9:04:36 PDT"]
[Termination "FabianoCaruana won by resignation"]

1. d4 {[%clk 0:03:00.9]} 1... Nf6 {[%clk 0:02:59.1]} 2. c4 {[%clk 0:03:01.4]}
2... e6 {[%clk 0:02:59.2]} 3. Nf3 {[%clk 0:03:02]} 3... d5 {[%clk 0:02:58.7]} 4.
g3 {[%clk 0:03:02.4]} 4... Be7 {[%clk 0:02:57.7]} 5. Bg2 {[%clk 0:03:03]} 5...
O-O {[%clk 0:02:58.4]} 6. O-O {[%clk 0:03:03.4]} 6... dxc4 {[%clk 0:02:58.7]} 7.
Qc2 {[%clk 0:03:04.1]} 7... a6 {[%clk 0:02:58.6]} 8. a4 {[%clk 0:03:04.7]} 8...
Bd7 {[%clk 0:02:58.7]} 9. Qxc4 {[%clk 0:03:05.4]} 9... Bc6 {[%clk 0:02:59.1]}
10. Bg5 {[%clk 0:03:05.9]} 10... Nbd7 {[%clk 0:02:59]} 11. Rd1 {[%clk
0:03:05.2]} 11... h6 {[%clk 0:02:58]} 12. Bxf6 {[%clk 0:03:05.5]} 12... Nxf6
{[%clk 0:02:58.9]} 13. Nc3 {[%clk 0:03:05.9]} 13... Qd6 {[%clk 0:02:54.7]} 14.
Qb3 {[%clk 0:02:45.5]} 14... Rfd8 {[%clk 0:02:50.2]} 15. a5 {[%clk 0:02:37.5]}
15... Bf8 {[%clk 0:02:46.8]} 16. Qc2 {[%clk 0:02:34.5]} 16... Rac8 {[%clk
0:02:41.3]} 17. e4 {[%clk 0:02:30.6]} 17... Qb4 {[%clk 0:02:40.7]} 18. Ne5
{[%clk 0:02:21]} 18... Be8 {[%clk 0:02:38.5]} 19. d5 {[%clk 0:02:20.5]} 19...
exd5 {[%clk 0:02:30.8]} 20. exd5 {[%clk 0:02:21.4]} 20... Bd6 {[%clk 0:02:20.7]}
21. Nf3 {[%clk 0:02:18.2]} 21... Bd7 {[%clk 0:02:14.1]} 22. Rd4 {[%clk
0:01:57.1]} 22... Qc5 {[%clk 0:02:14]} 23. b4 {[%clk 0:01:57]} 23... Qa7 {[%clk
0:02:14]} 24. Qd2 {[%clk 0:01:53.4]} 24... Re8 {[%clk 0:02:11.1]} 25. Rd1 {[%clk
0:01:28]} 25... Re7 {[%clk 0:02:02.4]} 26. Qc2 {[%clk 0:01:11.6]} 26... Rce8
{[%clk 0:01:59.9]} 27. h3 {[%clk 0:00:58.4]} 27... b6 {[%clk 0:01:59]} 28. axb6
{[%clk 0:00:54.3]} 28... Qxb6 {[%clk 0:01:56.4]} 29. Qd3 {[%clk 0:00:52.5]}
29... Bxb4 {[%clk 0:01:52.1]} 30. Nd2 {[%clk 0:00:38]} 30... Bf5 {[%clk
0:01:35.7]} 31. Qc4 {[%clk 0:00:29.4]} 31... Bd6 {[%clk 0:01:16.8]} 32. Rb1
{[%clk 0:00:24.5]} 32... Bxb1 {[%clk 0:01:15.7]} 0-1

[Event "Early-Titled-Tuesday-Blitz-September-12-2023"]
[Site "Chess.com"]
[Date "2023.09.12"]
[Round "6"]
[White "MusicCityMaster"]
[Black "DKmirl"]
[Result "1-0"]
[WhiteElo "2374"]
[BlackElo "2260"]
[TimeControl "180+1"]
[EndTime "9:04:36 PDT"]
[Termination "MusicCityMaster won by checkmate"]

1. e4 {[%clk 0:03:00.9]} 1... c5 {[%clk 0:02:59.3]} 2. Nf3 {[%clk 0:03:00.8]}
2... Nc6 {[%clk 0:02:56.3]} 3. d3 {[%clk 0:03:01]} 3... g6 {[%clk 0:02:53.8]} 4.
g3 {[%clk 0:03:01.6]} 4... Bg7 {[%clk 0:02:53.7]} 5. Bg2 {[%clk 0:03:02.5]} 5...
Nf6 {[%clk 0:02:53.3]} 6. O-O {[%clk 0:03:02.9]} 6... Kf8 {[%clk 0:02:53.6]} 7.
Re1 {[%clk 0:02:54.4]} 7... d6 {[%clk 0:02:52.9]} 8. Nc3 {[%clk 0:02:52]} 8...
Kg8 {[%clk 0:02:52.4]} 9. h3 {[%clk 0:02:44]} 9... e5 {[%clk 0:02:40.4]} 10. Be3
{[%clk 0:02:38.6]} 10... h6 {[%clk 0:02:39.1]} 11. Qd2 {[%clk 0:02:35.8]} 11...
Kh7 {[%clk 0:02:38.6]} 12. Nh2 {[%clk 0:02:28.4]} 12... Nd4 {[%clk 0:02:29.8]}
13. f4 {[%clk 0:02:23.6]} 13... Bd7 {[%clk 0:02:25.9]} 14. Rf1 {[%clk
0:02:22.4]} 14... Qc8 {[%clk 0:02:24.3]} 15. fxe5 {[%clk 0:02:15.3]} 15... dxe5
{[%clk 0:02:20.3]} 16. g4 {[%clk 0:02:15.4]} 16... Ne6 {[%clk 0:01:50]} 17. Nd5
{[%clk 0:02:07.3]} 17... Nxd5 {[%clk 0:01:03.5]} 18. exd5 {[%clk 0:02:08.2]}
18... Nd8 {[%clk 0:01:01.4]} 19. Rf2 {[%clk 0:01:50.5]} 19... f6 {[%clk
0:00:50.2]} 20. Raf1 {[%clk 0:01:48.1]} 20... Nf7 {[%clk 0:00:48.3]} 21. Nf3
{[%clk 0:01:31.9]} 21... Kg8 {[%clk 0:00:40.1]} 22. Nh4 {[%clk 0:01:30.6]} 22...
Kh7 {[%clk 0:00:26.8]} 23. Nxg6 {[%clk 0:01:27.8]} 23... Kxg6 {[%clk 0:00:15.5]}
24. Be4+ {[%clk 0:01:27.3]} 24... f5 {[%clk 0:00:15.8]} 25. Rxf5 {[%clk
0:01:18.4]} 25... Ng5 {[%clk 0:00:07.1]} 26. Rf6# {[%clk 0:01:16.1]} 1-0

[Event "Early-Titled-Tuesday-Blitz-September-12-2023"]
[Site "Chess.com"]
[Date "2023.09.12"]
[Round "6"]
[White "El_Matador12"]
[Black "Tsyhanchuk_Stanislav"]
[Result "1-0"]
[WhiteElo "2609"]
[BlackElo "2426"]
[TimeControl "180+1"]
[EndTime "9:04:38 PDT"]
[Termination "El_Matador12 won by checkmate"]

1. d4 {[%clk 0:03:00.1]} 1... Nf6 {[%clk 0:02:59.4]} 2. Bg5 {[%clk 0:02:59.8]}
2... Ne4 {[%clk 0:02:58.6]} 3. h4 {[%clk 0:02:59.2]} 3... h6 {[%clk 0:02:47.5]}
4. Bf4 {[%clk 0:02:57.9]} 4... c5 {[%clk 0:02:47.6]} 5. d5 {[%clk 0:02:56.8]}
5... d6 {[%clk 0:02:29.8]} 6. Nd2 {[%clk 0:02:54.6]} 6... Bf5 {[%clk 0:02:16.4]}
7. Nxe4 {[%clk 0:02:53.4]} 7... Bxe4 {[%clk 0:02:17.3]} 8. f3 {[%clk 0:02:54.3]}
8... Bh7 {[%clk 0:02:15.1]} 9. e4 {[%clk 0:02:55.2]} 9... Nd7 {[%clk 0:02:12.6]}
10. Ne2 {[%clk 0:02:49.6]} 10... Qb6 {[%clk 0:01:37.9]} 11. Qc1 {[%clk
0:02:19.1]} 11... O-O-O {[%clk 0:01:33.9]} 12. Nc3 {[%clk 0:02:16.1]} 12... e6
{[%clk 0:01:23.4]} 13. a4 {[%clk 0:02:15.3]} 13... a5 {[%clk 0:01:03.4]} 14.
dxe6 {[%clk 0:02:08.1]} 14... fxe6 {[%clk 0:01:03.2]} 15. Bc4 {[%clk 0:02:09]}
15... Re8 {[%clk 0:00:32.2]} 16. O-O {[%clk 0:02:01.2]} 16... g5 {[%clk
0:00:28.9]} 17. Be3 {[%clk 0:01:53.9]} 17... Bg7 {[%clk 0:00:22.5]} 18. Ra3
{[%clk 0:01:48.1]} 18... gxh4 {[%clk 0:00:16.3]} 19. Rb3 {[%clk 0:01:46.2]}
19... Qc6 {[%clk 0:00:16]} 20. Qd2 {[%clk 0:01:28.3]} 20... h3 {[%clk 0:00:14]}
21. Nb5 {[%clk 0:01:24]} 21... Be5 {[%clk 0:00:10.6]} 22. Na7+ {[%clk
0:01:22.9]} 22... Kc7 {[%clk 0:00:09.4]} 23. Nxc6 {[%clk 0:01:22.6]} 23... bxc6
{[%clk 0:00:10.3]} 24. Qxa5+ {[%clk 0:01:22]} 24... Kc8 {[%clk 0:00:08.5]} 25.
Ba6# {[%clk 0:01:21.8]} 1-0

[Event "Early-Titled-Tuesday-Blitz-September-12-2023"]
[Site "Chess.com"]
[Date "2023.09.12"]
[Round "6"]
[White "Arimin1329"]
[Black "TomLiu777"]
[Result "1-0"]
[WhiteElo "2283"]
[BlackElo "2394"]
[TimeControl "180+1"]
[EndTime "9:04:53 PDT"]
[Termination "Arimin1329 won by resignation"]

1. Nf3 {[%clk 0:03:00.9]} 1... f5 {[%clk 0:02:49.2]} 2. b4 {[%clk 0:02:58.3]}
2... Nf6 {[%clk 0:02:46.4]} 3. Bb2 {[%clk 0:02:58.8]} 3... e6 {[%clk 0:02:47]}
4. b5 {[%clk 0:02:57.5]} 4... d5 {[%clk 0:02:44.5]} 5. d3 {[%clk 0:02:51.6]}
5... c6 {[%clk 0:02:42]} 6. bxc6 {[%clk 0:02:41.7]} 6... bxc6 {[%clk 0:02:39.5]}
7. e3 {[%clk 0:02:36.1]} 7... Bd6 {[%clk 0:02:38.1]} 8. Be2 {[%clk 0:02:35.6]}
8... O-O {[%clk 0:02:28.6]} 9. O-O {[%clk 0:02:35.6]} 9... Bd7 {[%clk 0:02:26]}
10. d4 {[%clk 0:02:30.7]} 10... Be8 {[%clk 0:02:24.8]} 11. Ba3 {[%clk
0:02:30.4]} 11... Bxa3 {[%clk 0:02:20.5]} 12. Nxa3 {[%clk 0:02:31.3]} 12... Qd6
{[%clk 0:02:20.8]} 13. Nb1 {[%clk 0:02:29.7]} 13... Nbd7 {[%clk 0:02:21.1]} 14.
c4 {[%clk 0:02:28.4]} 14... Bh5 {[%clk 0:02:13.9]} 15. Nbd2 {[%clk 0:02:27.6]}
15... Kh8 {[%clk 0:01:54.7]} 16. Qa4 {[%clk 0:02:25.7]} 16... Bxf3 {[%clk
0:01:50.1]} 17. Nxf3 {[%clk 0:02:23.7]} 17... Ne4 {[%clk 0:01:48.8]} 18. Rfc1
{[%clk 0:02:15.9]} 18... Ndf6 {[%clk 0:01:33.7]} 19. cxd5 {[%clk 0:02:07.1]}
19... cxd5 {[%clk 0:01:34.6]} 20. Rc6 {[%clk 0:02:05.5]} 20... Qe7 {[%clk
0:01:30.2]} 21. Ne5 {[%clk 0:02:01.6]} 21... Rac8 {[%clk 0:01:25.3]} 22. Rac1
{[%clk 0:02:00.7]} 22... Rxc6 {[%clk 0:01:23]} 23. Qxc6 {[%clk 0:01:59.7]} 23...
Ng4 {[%clk 0:01:19]} 24. Bxg4 {[%clk 0:01:44.7]} 24... fxg4 {[%clk 0:01:19.9]}
25. Nxg4 {[%clk 0:01:43.7]} 25... Qh4 {[%clk 0:01:15.2]} 26. Qxe6 {[%clk
0:01:27.4]} 26... Nxf2 {[%clk 0:01:12.5]} 27. Qf7 {[%clk 0:01:00.1]} 27... Qd8
{[%clk 0:00:53.1]} 28. Ne5 {[%clk 0:00:44.9]} 28... Nd3 {[%clk 0:00:48.3]} 29.
Rf1 {[%clk 0:00:40]} 1-0

[Event "Early-Titled-Tuesday-Blitz-September-12-2023"]
[Site "Chess.com"]
[Date "2023.09.12"]
[Round "6"]
[White "mishanick"]
[Black "Aradhya2000"]
[Result "1-0"]
[WhiteElo "3072"]
[BlackElo "2697"]
[TimeControl "180+1"]
[EndTime "9:04:56 PDT"]
[Termination "mishanick won by resignation"]

1. d4 {[%clk 0:02:56.9]} 1... d5 {[%clk 0:03:00]} 2. c4 {[%clk 0:02:57.5]} 2...
e6 {[%clk 0:03:00.5]} 3. Nc3 {[%clk 0:02:57.7]} 3... Nf6 {[%clk 0:03:00.9]} 4.
Nf3 {[%clk 0:02:57.4]} 4... h6 {[%clk 0:02:57.5]} 5. cxd5 {[%clk 0:02:57]} 5...
exd5 {[%clk 0:02:56]} 6. Bf4 {[%clk 0:02:57]} 6... Bd6 {[%clk 0:02:56.5]} 7. Be5
{[%clk 0:02:56.6]} 7... c6 {[%clk 0:02:48.7]} 8. e3 {[%clk 0:02:57]} 8... O-O
{[%clk 0:02:48.1]} 9. Bd3 {[%clk 0:02:55.3]} 9... Re8 {[%clk 0:02:47]} 10. h3
{[%clk 0:02:48.5]} 10... Bxe5 {[%clk 0:02:20]} 11. Nxe5 {[%clk 0:02:48.2]} 11...
Nbd7 {[%clk 0:02:19.8]} 12. f4 {[%clk 0:02:48.7]} 12... Nxe5 {[%clk 0:02:19.6]}
13. fxe5 {[%clk 0:02:49.6]} 13... Ne4 {[%clk 0:02:20]} 14. O-O {[%clk
0:02:43.9]} 14... f5 {[%clk 0:02:17.9]} 15. Bxe4 {[%clk 0:02:15.5]} 15... dxe4
{[%clk 0:02:13.2]} 16. Qb3+ {[%clk 0:02:14.6]} 16... Kh7 {[%clk 0:02:04.6]} 17.
Ne2 {[%clk 0:02:14.8]} 17... Be6 {[%clk 0:01:54.9]} 18. Qxb7 {[%clk 0:02:11.9]}
18... Rb8 {[%clk 0:01:22.4]} 19. Qxc6 {[%clk 0:02:06.8]} 19... Rxb2 {[%clk
0:01:20.9]} 20. Nf4 {[%clk 0:02:06.2]} 20... Bf7 {[%clk 0:01:10.9]} 21. e6
{[%clk 0:02:00.6]} 21... Rb6 {[%clk 0:01:09.2]} 22. Qc5 {[%clk 0:01:49.6]} 22...
Bxe6 {[%clk 0:01:08.9]} 23. Nxe6 {[%clk 0:01:48.8]} 23... Rexe6 {[%clk 0:01:09]}
24. Qxf5+ {[%clk 0:01:48.3]} 24... Kh8 {[%clk 0:01:07.5]} 25. Rf4 {[%clk
0:01:46]} 25... Qe7 {[%clk 0:01:00]} 26. Raf1 {[%clk 0:01:45.1]} 26... Rf6
{[%clk 0:00:54.8]} 27. Qc8+ {[%clk 0:01:44]} 27... Kh7 {[%clk 0:00:54.9]} 28.
Rxf6 {[%clk 0:01:39.1]} 28... Rxf6 {[%clk 0:00:53]} 29. Rxf6 {[%clk 0:01:39.6]}
29... Qxf6 {[%clk 0:00:52.9]} 30. Qb7 {[%clk 0:01:39.5]} 30... Qf5 {[%clk
0:00:50.1]} 31. Qxa7 {[%clk 0:01:38.7]} 31... Qg5 {[%clk 0:00:50.4]} 32. Qa3
{[%clk 0:01:36.3]} 32... Qg3 {[%clk 0:00:50.3]} 33. Qc1 {[%clk 0:01:33.9]} 33...
h5 {[%clk 0:00:45.8]} 34. Qd2 {[%clk 0:01:34.3]} 34... Qd6 {[%clk 0:00:42.2]}
35. Qf2 {[%clk 0:01:33.9]} 35... Qd5 {[%clk 0:00:35.4]} 36. a4 {[%clk
0:01:34.2]} 36... g6 {[%clk 0:00:23.3]} 37. Qf4 {[%clk 0:01:33.3]} 37... Kg7
{[%clk 0:00:21]} 38. Qe5+ {[%clk 0:01:33.2]} 38... Qxe5 {[%clk 0:00:21.5]} 39.
dxe5 {[%clk 0:01:34.1]} 39... Kf7 {[%clk 0:00:21.6]} 40. a5 {[%clk 0:01:35]}
40... Ke6 {[%clk 0:00:22.3]} 41. a6 {[%clk 0:01:35.9]} 41... Kxe5 {[%clk
0:00:23.1]} 42. a7 {[%clk 0:01:36.8]} 42... Kd5 {[%clk 0:00:23.7]} 43. a8=Q+
{[%clk 0:01:37.7]} 43... Ke5 {[%clk 0:00:23.9]} 44. Qa7 {[%clk 0:01:38.6]} 44...
Kf5 {[%clk 0:00:23.6]} 45. Qd4 {[%clk 0:01:39.5]} 45... g5 {[%clk 0:00:23.3]}
46. Qd5+ {[%clk 0:01:39.5]} 46... Kf6 {[%clk 0:00:23.1]} 47. Qd4+ {[%clk
0:01:39.7]} 1-0

[Event "Early-Titled-Tuesday-Blitz-September-12-2023"]
[Site "Chess.com"]
[Date "2023.09.12"]
[Round "6"]
[White "MdImranCM"]
[Black "Let_it_be_1"]
[Result "0-1"]
[WhiteElo "2486"]
[BlackElo "2663"]
[TimeControl "180+1"]
[EndTime "9:04:58 PDT"]
[Termination "Let_it_be_1 won by resignation"]

1. d4 {[%clk 0:03:00.7]} 1... d5 {[%clk 0:02:56]} 2. Bf4 {[%clk 0:03:01.2]} 2...
e6 {[%clk 0:02:55.4]} 3. Nd2 {[%clk 0:03:01.3]} 3... Bd6 {[%clk 0:02:56]} 4. e3
{[%clk 0:03:02]} 4... Bxf4 {[%clk 0:02:55.1]} 5. exf4 {[%clk 0:03:02.9]} 5...
Ne7 {[%clk 0:02:55.8]} 6. Bd3 {[%clk 0:03:02.7]} 6... b6 {[%clk 0:02:55.9]} 7.
Ngf3 {[%clk 0:03:02.3]} 7... Ba6 {[%clk 0:02:55.6]} 8. Bxa6 {[%clk 0:03:01.6]}
8... Nxa6 {[%clk 0:02:55.4]} 9. Qe2 {[%clk 0:03:02.2]} 9... Nb8 {[%clk
0:02:54.3]} 10. h4 {[%clk 0:03:01.9]} 10... O-O {[%clk 0:02:51.9]} 11. c3 {[%clk
0:03:02.5]} 11... c5 {[%clk 0:02:51.8]} 12. h5 {[%clk 0:03:01.3]} 12... h6
{[%clk 0:02:51.9]} 13. Ne5 {[%clk 0:02:59]} 13... Nbc6 {[%clk 0:02:51.7]} 14.
Ndf3 {[%clk 0:02:59.2]} 14... Qd6 {[%clk 0:02:49.1]} 15. O-O {[%clk 0:02:56.6]}
15... Rac8 {[%clk 0:02:43.9]} 16. Rfd1 {[%clk 0:02:55.2]} 16... cxd4 {[%clk
0:02:42.9]} 17. Nxd4 {[%clk 0:02:55.2]} 17... Nxd4 {[%clk 0:02:37.6]} 18. Rxd4
{[%clk 0:02:51.8]} 18... f6 {[%clk 0:02:23.8]} 19. Nf3 {[%clk 0:02:44.9]} 19...
Nc6 {[%clk 0:02:19.3]} 20. Rd2 {[%clk 0:02:38.6]} 20... Rfe8 {[%clk 0:02:17.6]}
21. g3 {[%clk 0:02:37.4]} 21... e5 {[%clk 0:02:11]} 22. fxe5 {[%clk 0:02:37.4]}
22... fxe5 {[%clk 0:02:09.2]} 23. Rad1 {[%clk 0:02:37]} 23... d4 {[%clk
0:02:09.4]} 24. Qc4+ {[%clk 0:02:28.2]} 24... Kh8 {[%clk 0:02:08.6]} 25. Nh4
{[%clk 0:02:23]} 25... Qf6 {[%clk 0:01:58.2]} 26. Ng6+ {[%clk 0:02:22.5]} 26...
Kh7 {[%clk 0:01:58.3]} 27. Qd5 {[%clk 0:02:17.7]} 27... Qf5 {[%clk 0:01:51.1]}
28. cxd4 {[%clk 0:02:13]} 28... Red8 {[%clk 0:01:40.1]} 29. Qb5 {[%clk
0:01:43.9]} 29... Nxd4 {[%clk 0:01:24.1]} 30. Rxd4 {[%clk 0:01:35]} 30... Rxd4
{[%clk 0:01:23.4]} 31. Rxd4 {[%clk 0:01:34.5]} 31... Qb1+ {[%clk 0:01:09.9]} 32.
Kh2 {[%clk 0:01:34.5]} 32... exd4 {[%clk 0:01:09.2]} 33. Qd7 {[%clk 0:01:27.6]}
33... Qc2 {[%clk 0:00:56]} 34. Qxd4 {[%clk 0:01:22.3]} 34... Qf5 {[%clk
0:00:52.2]} 35. Nf4 {[%clk 0:01:21.5]} 35... Rc2 {[%clk 0:00:49]} 36. b4 {[%clk
0:01:20.6]} 36... Rxa2 {[%clk 0:00:46.2]} 37. Qd6 {[%clk 0:01:20.7]} 37... Rxf2+
{[%clk 0:00:42.5]} 38. Kg1 {[%clk 0:01:20.6]} 38... Rb2 {[%clk 0:00:38.4]} 39.
Nd3 {[%clk 0:01:15.7]} 39... Rd2 {[%clk 0:00:33]} 0-1

[Event "Early-Titled-Tuesday-Blitz-September-12-2023"]
[Site "Chess.com"]
[Date "2023.09.12"]
[Round "6"]
[White "younix2022"]
[Black "IngOscarArdila"]
[Result "1-0"]
[WhiteElo "2039"]
[BlackElo "2293"]
[TimeControl "180+1"]
[EndTime "9:04:58 PDT"]
[Termination "younix2022 won by resignation"]

1. Nf3 {[%clk 0:03:00]} 1... Nf6 {[%clk 0:02:43]} 2. c4 {[%clk 0:02:55.2]} 2...
g6 {[%clk 0:02:43.4]} 3. Nc3 {[%clk 0:02:48]} 3... Bg7 {[%clk 0:02:44.3]} 4. d4
{[%clk 0:02:47.8]} 4... O-O {[%clk 0:02:43.8]} 5. g3 {[%clk 0:02:48]} 5... d6
{[%clk 0:02:44.7]} 6. Bg2 {[%clk 0:02:48.4]} 6... Nbd7 {[%clk 0:02:45.4]} 7. O-O
{[%clk 0:02:48.6]} 7... c6 {[%clk 0:02:45.9]} 8. Rb1 {[%clk 0:02:48.6]} 8... Qc7
{[%clk 0:02:46.8]} 9. a3 {[%clk 0:02:48.9]} 9... e5 {[%clk 0:02:47.2]} 10. dxe5
{[%clk 0:02:48.2]} 10... Nxe5 {[%clk 0:02:47.1]} 11. Nxe5 {[%clk 0:02:47.5]}
11... dxe5 {[%clk 0:02:48]} 12. e4 {[%clk 0:02:46.4]} 12... Bg4 {[%clk
0:02:47.5]} 13. f3 {[%clk 0:02:46]} 13... Rad8 {[%clk 0:02:47.5]} 14. Qe1 {[%clk
0:02:45.7]} 14... Be6 {[%clk 0:02:47.3]} 15. Be3 {[%clk 0:02:45.4]} 15... Bxc4
{[%clk 0:02:46.3]} 16. Rf2 {[%clk 0:02:46.2]} 16... b5 {[%clk 0:02:40.1]} 17.
Rc2 {[%clk 0:02:41.1]} 17... Qb8 {[%clk 0:02:35]} 18. Bf1 {[%clk 0:02:36]} 18...
Bxf1 {[%clk 0:02:33.1]} 19. Kxf1 {[%clk 0:02:36.7]} 19... Rfe8 {[%clk
0:02:32.8]} 20. b4 {[%clk 0:02:28.5]} 20... Nd7 {[%clk 0:02:31.6]} 21. a4 {[%clk
0:02:28.4]} 21... Bf8 {[%clk 0:02:22.7]} 22. axb5 {[%clk 0:02:27.5]} 22... cxb5
{[%clk 0:02:22.7]} 23. Nd5 {[%clk 0:02:26.5]} 23... Rc8 {[%clk 0:02:17.2]} 24.
Rbc1 {[%clk 0:02:22.7]} 24... Rxc2 {[%clk 0:02:11.2]} 25. Rxc2 {[%clk
0:02:23.4]} 25... Rc8 {[%clk 0:02:11.5]} 26. Qc1 {[%clk 0:02:23.7]} 26... Rxc2
{[%clk 0:02:05.4]} 27. Qxc2 {[%clk 0:02:24.4]} 27... Qb7 {[%clk 0:01:39.2]} 28.
Kg2 {[%clk 0:02:18.5]} 28... a6 {[%clk 0:01:33.9]} 29. h4 {[%clk 0:02:17.4]}
29... h5 {[%clk 0:01:33.4]} 30. Qc3 {[%clk 0:02:07.8]} 30... f5 {[%clk
0:01:29.9]} 31. Bg5 {[%clk 0:02:03]} 31... a5 {[%clk 0:01:12.6]} 32. bxa5 {[%clk
0:01:59.1]} 32... b4 {[%clk 0:01:12.8]} 33. Qb3 {[%clk 0:01:58.6]} 33... Kh7
{[%clk 0:01:12.5]} 34. Qa4 {[%clk 0:01:50.3]} 34... b3 {[%clk 0:01:09.2]} 35.
Bc1 {[%clk 0:01:48.9]} 35... b2 {[%clk 0:01:08.4]} 36. Bxb2 {[%clk 0:01:47]}
36... Qxb2+ {[%clk 0:01:08.5]} 37. Kh3 {[%clk 0:01:47.7]} 37... Nc5 {[%clk
0:00:52.2]} 38. Nf6+ {[%clk 0:01:46.3]} 38... Kg7 {[%clk 0:00:35.3]} 39. Ne8+
{[%clk 0:01:45.7]} 39... Kf7 {[%clk 0:00:35.1]} 40. Qc6 {[%clk 0:01:39.8]} 40...
Qb7 {[%clk 0:00:15.5]} 41. Qxb7+ {[%clk 0:01:38.7]} 41... Nxb7 {[%clk
0:00:14.8]} 42. a6 {[%clk 0:01:39.5]} 42... Nd8 {[%clk 0:00:05.9]} 43. a7 {[%clk
0:01:35.6]} 1-0

[Event "Early-Titled-Tuesday-Blitz-September-12-2023"]
[Site "Chess.com"]
[Date "2023.09.12"]
[Round "6"]
[White "Lennis93"]
[Black "the-gambler"]
[Result "1-0"]
[WhiteElo "2739"]
[BlackElo "2539"]
[TimeControl "180+1"]
[EndTime "9:05:04 PDT"]
[Termination "Lennis93 won by resignation"]

1. Nf3 {[%clk 0:03:00.9]} 1... d5 {[%clk 0:02:58.6]} 2. c4 {[%clk 0:03:00]} 2...
e6 {[%clk 0:02:57.6]} 3. e3 {[%clk 0:02:59.1]} 3... Nf6 {[%clk 0:02:57.2]} 4.
Nc3 {[%clk 0:02:59.5]} 4... Be7 {[%clk 0:02:56.6]} 5. d4 {[%clk 0:02:59.4]} 5...
O-O {[%clk 0:02:56.7]} 6. Qc2 {[%clk 0:02:56.3]} 6... dxc4 {[%clk 0:02:54.7]} 7.
Bxc4 {[%clk 0:02:55.9]} 7... a6 {[%clk 0:02:55]} 8. a4 {[%clk 0:02:55.4]} 8...
c5 {[%clk 0:02:54.9]} 9. O-O {[%clk 0:02:55.6]} 9... Nc6 {[%clk 0:02:54.9]} 10.
Rd1 {[%clk 0:02:55.3]} 10... cxd4 {[%clk 0:02:54.5]} 11. Nxd4 {[%clk 0:02:55.3]}
11... Nxd4 {[%clk 0:02:49.2]} 12. Rxd4 {[%clk 0:02:56.2]} 12... Qc7 {[%clk
0:02:49.2]} 13. Bd3 {[%clk 0:02:54.2]} 13... Bd7 {[%clk 0:02:37.1]} 14. e4
{[%clk 0:02:47.9]} 14... Ng4 {[%clk 0:02:21.8]} 15. g3 {[%clk 0:02:44.2]} 15...
Ne5 {[%clk 0:02:19.9]} 16. Be2 {[%clk 0:02:42.2]} 16... Bc5 {[%clk 0:02:12.3]}
17. Rd1 {[%clk 0:02:41.9]} 17... Qb6 {[%clk 0:02:09]} 18. Bf4 {[%clk 0:02:36.6]}
18... Bxf2+ {[%clk 0:02:05]} 19. Kg2 {[%clk 0:02:36.4]} 19... f6 {[%clk
0:01:44.3]} 20. Bxe5 {[%clk 0:02:27.9]} 20... fxe5 {[%clk 0:01:44.1]} 21. Rxd7
{[%clk 0:02:28.4]} 21... Bd4 {[%clk 0:01:32.4]} 22. Rf1 {[%clk 0:02:27.5]} 22...
Qc6 {[%clk 0:01:27.3]} 23. Re7 {[%clk 0:02:20.4]} 23... Rxf1 {[%clk 0:01:26.3]}
24. Bxf1 {[%clk 0:02:18.8]} 24... Rf8 {[%clk 0:01:27]} 25. Qb3 {[%clk
0:01:15.9]} 25... Rf2+ {[%clk 0:01:19.6]} 26. Kh3 {[%clk 0:01:16.1]} 26... Rxf1
{[%clk 0:01:16.2]} 27. Rxe6 {[%clk 0:01:16.4]} 27... Qd7 {[%clk 0:01:15.9]} 28.
g4 {[%clk 0:01:16.5]} 28... Rf3+ {[%clk 0:01:12.1]} 29. Kg2 {[%clk 0:01:14.6]}
29... Rf2+ {[%clk 0:01:12.1]} 30. Kg3 {[%clk 0:01:14.8]} 30... Rf7 {[%clk
0:00:55.3]} 31. Qd5 {[%clk 0:01:06.6]} 31... Bxc3 {[%clk 0:00:42.7]} 32. bxc3
{[%clk 0:01:02.6]} 32... Qxa4 {[%clk 0:00:38.7]} 33. Re7 {[%clk 0:00:53.1]} 1-0